fUST/lending_fUST_20240408
["ID","MTS","AMOUNT","RATE_DAILY","PERIOD"]
[321893645,1712587850838,-2162.64,0.00072602,120]
[321893646,1712587850848,-1163.82,0.00072602,120]
[321893647,1712587850858,-172.869123,0.00072602,120]
[321893648,1712587850868,-1982.02,0.00072602,120]
[321893649,1712587850877,-540.95,0.00072602,120]
[321893650,1712587850887,-776.21,0.00072602,120]
[321893651,1712587850896,-319.99296,0.00072602,120]
[321893652,1712587850906,-4457.34,0.00072602,90]
[321893653,1712587850916,-319.99296,0.00072602,120]
[321893654,1712587850926,-861.87,0.00072602,120]
[321893655,1712587850935,-414.208249,0.00072602,120]
[321893656,1712587850945,-414.208249,0.00072602,120]
[321893657,1712587850955,-737.67,0.00072602,120]
[321893658,1712587850964,-676.76,0.00072602,21]
[321893659,1712587850974,-500.0,0.00072602,120]
[321893660,1712587850983,-599.04,0.00072602,120]
[321893661,1712587850993,-197.44589,0.00072602,120]
[321893662,1712587851003,-1686.44,0.00072602,120]
[321893663,1712587851012,-197.44589,0.00072602,120]
[321893664,1712587851022,-4451.46,0.00072602,120]
[321893665,1712587851031,-2675.24,0.00072602,120]
[321893666,1712587851041,-840.33,0.00072602,120]
[321893667,1712587851051,-3524.25,0.00072602,120]
[321893668,1712587851060,-151.0,0.00072602,120]
[321893669,1712587851069,-269.940499,0.00072602,120]
[321893670,1712587851078,-1900.0,0.00072602,120]
[321893671,1712587851088,-1000.0,0.00072987,3]
[321893672,1712587851097,-1000.0,0.00072987,2]
[321893673,1712587851106,-165.172306,0.00073059,120]
[321893674,1712587851116,-963.44811436,0.00073151,120]
[321893675,1712587851127,-1077.68,0.00073424,120]
[321893676,1712587851137,-856.76,0.00073424,120]
[321893677,1712587851146,-526.63,0.00073424,120]
[321893678,1712587851155,-1302.92,0.00073424,120]
[321893679,1712587851165,-883.87,0.00073424,120]
[321893680,1712587851174,-559.89,0.00073424,120]
[321893681,1712587851183,-1923.13,0.00073424,120]
[321893682,1712587851192,-1109.37,0.00073424,120]
[321893683,1712587851201,-10649.33,0.00073424,120]
[321893684,1712587851210,-415.49156416,0.00073424,120]
[321893685,1712587851220,-2345.23,0.00073424,120]
[321893686,1712587851229,-732.94,0.00073424,120]
[321893687,1712587851238,-830.91,0.00073424,120]
[321893688,1712587851247,-714.09,0.00073424,120]
[321893689,1712587851257,-962.04,0.00073424,2]
[321893690,1712587851267,-576.59,0.00073424,120]
[321893691,1712587851276,-15305.89,0.00073424,120]
[321893692,1712587851285,-1950.5,0.00073424,120]
[321893693,1712587851295,-2695.62,0.00073424,120]
[321893694,1712587851305,-500.0,0.00073424,120]
[321893695,1712587851314,-748.8,0.00073424,120]
[321893696,1712587851323,-2162.64,0.00073424,120]
[321893697,1712587851333,-1163.82,0.00073424,120]
[321893698,1712587851342,-1982.02,0.00073424,120]
[321893699,1712587851351,-540.95,0.00073424,120]
[321893700,1712587851360,-776.21,0.00073424,120]
[321893701,1712587851369,-4457.34,0.00073424,90]
[321893702,1712587851382,-861.87,0.00073424,120]
[321893703,1712587851391,-737.67,0.00073424,120]
[321893704,1712587851400,-676.76,0.00073424,21]
[321893705,1712587851409,-500.0,0.00073424,120]
[321893706,1712587851421,-599.04,0.00073424,120]
[321893707,1712587851430,-1686.44,0.00073424,120]
[321893708,1712587851439,-4451.46,0.00073424,120]
[321893709,1712587851448,-2675.24,0.00073424,120]
[321893710,1712587851459,-840.33,0.00073424,120]
[321893711,1712587851468,-3524.25,0.00073424,120]
[321893712,1712587851478,-1900.0,0.00073424,120]
[321893713,1712587851487,-293.430746,0.0007354,120]
[321893714,1712587851497,-198.973832,0.0007354,120]
[321893715,1712587851506,-301.6983017,0.00073725,4]
[321893716,1712587851515,-500.0,0.00073972,120]
[321893717,1712587851523,-406.88780725,0.00073972,120]
[321893718,1712587851533,-1000.0,0.00073987,4]
[321893719,1712587851541,-1000.0,0.00073987,3]
[321893720,1712587851552,-1000.0,0.00073987,2]
[321893721,1712587851561,-1077.68,0.00074246,120]
[321893722,1712587851570,-151.0,0.00074246,120]
[321893723,1712587851579,-856.76,0.00074246,120]
[321893724,1712587851589,-151.0,0.00074246,120]
[321893725,1712587851599,-526.63,0.00074246,120]
[321893726,1712587851608,-1302.92,0.00074246,120]
[321893727,1712587851618,-883.87,0.00074246,120]
[321893728,1712587851627,-559.89,0.00074246,120]
[321893729,1712587851637,-404.249464,0.00074246,120]
[321893730,1712587851646,-404.249464,0.00074246,120]
[321893731,1712587851655,-1923.13,0.00074246,120]
[321893732,1712587851665,-1109.37,0.00074246,120]
[321893733,1712587851674,-10649.33,0.00074246,120]
[321893734,1712587851684,-2345.23,0.00074246,120]
[321893735,1712587851693,-732.94,0.00074246,120]
[321893736,1712587851703,-830.91,0.00074246,120]
[321893737,1712587851712,-1219.88527,0.00074246,14]
[321893738,1712587851723,-714.09,0.00074246,120]
[321893739,1712587851732,-962.04,0.00074246,2]
[321893740,1712587851742,-1219.88527,0.00074246,14]
[321893741,1712587851803,-576.59,0.00074246,120]
[321893742,1712587851812,-15305.89,0.00074246,120]
[321893743,1712587851822,-1950.5,0.00074246,120]
[321893744,1712587851831,-2695.62,0.00074246,120]
[321893745,1712587851840,-500.0,0.00074246,120]
[321893746,1712587851850,-748.8,0.00074246,120]
[321893747,1712587851859,-2162.64,0.00074246,120]
[321893748,1712587851868,-1163.82,0.00074246,120]
[321893749,1712587851877,-1982.02,0.00074246,120]
[321893750,1712587851887,-540.95,0.00074246,120]
[321893751,1712587851896,-776.21,0.00074246,120]
[321893752,1712587851905,-319.99296,0.00074246,120]
[321893753,1712587851914,-4457.34,0.00074246,90]
[321893754,1712587851923,-319.99296,0.00074246,120]
[321893755,1712587851932,-861.87,0.00074246,120]
[321893756,1712587851941,-414.208249,0.00074246,120]
[321893757,1712587851950,-414.208249,0.00074246,120]
[321893758,1712587851959,-737.67,0.00074246,120]
[321893759,1712587851968,-676.76,0.00074246,21]
[321893760,1712587851977,-500.0,0.00074246,120]
[321893761,1712587851985,-599.04,0.00074246,120]
[321893762,1712587851995,-197.44589,0.00074246,120]
[321893763,1712587852004,-1686.44,0.00074246,120]
[321893764,1712587852013,-197.44589,0.00074246,120]
[321893765,1712587852022,-4451.46,0.00074246,120]
[321893766,1712587852031,-2675.24,0.00074246,120]
[321893767,1712587852040,-840.33,0.00074246,120]
[321893768,1712587852051,-3524.25,0.00074246,120]
[321893769,1712587852061,-151.0,0.00074246,120]
[321893770,1712587852070,-860.32759488,0.00074246,120]
[321893771,1712587852079,-1920.0,0.00074565,30]
[321893772,1712587852088,-1000.0,0.00074987,4]
[321893773,1712587852097,-1000.0,0.00074987,5]
[321893774,1712587852106,-1000.0,0.00074987,3]
[321893775,1712587852115,-1000.0,0.00074987,2]
[321893776,1712587852125,-31843.18317222,0.00075,30]
[321893777,1712587852135,-20331.66646719,0.00075,120]
[321893778,1712587852144,-1000.0,0.00075,2]
[321893779,1712587852153,-259.002158,0.00075,120]
[321893780,1712587852162,-368.269632,0.00075,120]
[321893781,1712587852171,-368.269632,0.00075,120]
[321893782,1712587852180,-413.0,0.00075038,35]
[321893783,1712587852189,-3427.0,0.00075038,35]
[321893784,1712587852199,-413.0,0.00075048,35]
[321893785,1712587852208,-3427.0,0.00075048,35]
[321893786,1712587852217,-413.0,0.00075058,35]
[321893787,1712587852226,-3427.0,0.00075058,35]
[321893788,1712587852236,-151.0,0.00075058,120]
[321893789,1712587852246,-1077.68,0.00075068,120]
[321893790,1712587852255,-151.0,0.00075068,120]
[321893791,1712587852265,-856.76,0.00075068,120]
[321893792,1712587852275,-526.63,0.00075068,120]
[321893793,1712587852284,-1302.92,0.00075068,120]
[321893794,1712587852293,-883.87,0.00075068,120]
[321893795,1712587852305,-559.89,0.00075068,120]
[321893796,1712587852314,-404.249464,0.00075068,120]
[321893797,1712587852324,-404.249464,0.00075068,120]
[321893798,1712587852333,-1923.13,0.00075068,120]
[321893799,1712587852342,-1109.37,0.00075068,120]
[321893800,1712587852351,-10649.33,0.00075068,120]
[321893801,1712587852360,-2345.23,0.00075068,120]
[321893802,1712587852369,-732.94,0.00075068,120]
[321893803,1712587852381,-830.91,0.00075068,120]
[321893804,1712587852392,-1219.88527,0.00075068,14]
[321893805,1712587852401,-714.09,0.00075068,120]
[321893806,1712587852411,-962.04,0.00075068,2]
[321893807,1712587852420,-1219.88527,0.00075068,14]
[321893808,1712587852429,-576.59,0.00075068,120]
[321893809,1712587852438,-15305.89,0.00075068,120]
[321893810,1712587852447,-1950.5,0.00075068,120]
[321893811,1712587852458,-2695.62,0.00075068,120]
[321893812,1712587852468,-272.30403185,0.00075068,120]
[321893813,1712587852476,-748.8,0.00075068,120]
[321893814,1712587852486,-2162.64,0.00075068,120]
[321893815,1712587852495,-1163.82,0.00075068,120]
[321893816,1712587852504,-1982.02,0.00075068,120]
[321893817,1712587852513,-540.95,0.00075068,120]
[321893818,1712587852522,-776.21,0.00075068,120]
[321893819,1712587852531,-319.99296,0.00075068,120]
[321893820,1712587852541,-4457.34,0.00075068,90]
[321893821,1712587852551,-319.99296,0.00075068,120]
[321893822,1712587852560,-861.87,0.00075068,120]
[321893823,1712587852569,-414.208249,0.00075068,120]
[321893824,1712587852578,-414.208243,0.00075068,120]
[321893825,1712587852587,-737.67,0.00075068,120]
[321893826,1712587852596,-676.76,0.00075068,21]
[321893827,1712587852605,-500.0,0.00075068,120]
[321893828,1712587852614,-599.04,0.00075068,120]
[321893829,1712587852623,-197.44589,0.00075068,120]
[321893830,1712587852632,-1686.44,0.00075068,120]
[321893831,1712587852641,-197.445886,0.00075068,120]
[321893832,1712587852650,-4451.46,0.00075068,120]
[321893833,1712587852659,-2675.24,0.00075068,120]
[321893834,1712587852668,-840.33,0.00075068,120]
[321893835,1712587852678,-3524.25,0.00075068,120]
[321893836,1712587852687,-162.56,0.0007507,35]
[321893837,1712587852695,-160.77,0.0007507,35]
[321893838,1712587852704,-150.5,0.0007508,35]
[321893839,1712587852713,-150.5,0.0007508,35]
[321893840,1712587852723,-150.5,0.0007509,35]
[321893841,1712587852731,-150.5,0.0007509,35]
[321893842,1712587852741,-150.5,0.0007586,35]
[321893843,1712587852750,-150.5,0.0007587,35]
[321893844,1712587852760,-150.5,0.0007588,35]
[321893845,1712587852769,-1077.68,0.0007589,120]
[321893846,1712587852778,-856.76,0.0007589,120]
[321893847,1712587852788,-151.0,0.0007589,120]
[321893848,1712587852797,-526.63,0.0007589,120]
[321893849,1712587852806,-1302.92,0.0007589,120]
[321893850,1712587852815,-883.87,0.0007589,120]
[321893851,1712587852876,-559.89,0.0007589,120]
[321893852,1712587852885,-1923.13,0.0007589,120]
[321893853,1712587852894,-1109.37,0.0007589,120]
[321893854,1712587852903,-10649.33,0.0007589,120]
[321893855,1712587852912,-2345.23,0.0007589,120]
[321893856,1712587852921,-732.94,0.0007589,120]
[321893857,1712587852931,-830.91,0.0007589,120]
[321893858,1712587852940,-714.09,0.0007589,120]
[321893859,1712587852952,-962.04,0.0007589,2]
[321893860,1712587852961,-576.59,0.0007589,120]
[321893861,1712587852971,-15305.89,0.0007589,120]
[321893862,1712587852980,-1950.5,0.0007589,120]
[321893863,1712587852989,-2695.62,0.0007589,120]
[321893864,1712587852998,-748.8,0.0007589,120]
[321893865,1712587853007,-2162.64,0.0007589,120]
[321893866,1712587853016,-1163.82,0.0007589,120]
[321893867,1712587853025,-1982.02,0.0007589,120]
[321893868,1712587853035,-540.95,0.0007589,120]
[321893869,1712587853045,-776.21,0.0007589,120]
[321893870,1712587853055,-4457.34,0.0007589,90]
[321893871,1712587853064,-861.87,0.0007589,120]
[321893872,1712587853073,-737.67,0.0007589,120]
[321893873,1712587853082,-676.76,0.0007589,21]
[321893874,1712587853092,-500.0,0.0007589,120]
[321893875,1712587853101,-599.04,0.0007589,120]
[321893876,1712587853110,-1686.44,0.0007589,120]
[321893877,1712587853119,-4451.46,0.0007589,120]
[321893878,1712587853128,-2675.24,0.0007589,120]
[321893879,1712587853138,-840.33,0.0007589,120]
[321893880,1712587853147,-3524.25,0.0007589,120]
[321893881,1712587853156,-1564.30559828,0.00076,2]
[321893882,1712587853165,-712.98607825,0.00076,120]
[321893883,1712587853174,-368.269632,0.00076,120]
[321893884,1712587853183,-368.269632,0.00076,120]
[321893885,1712587853192,-200.0,0.00076002,120]
[321893886,1712587853201,-150.5,0.00076682,35]
[321893887,1712587853210,-150.5,0.00076692,35]
[321893888,1712587853219,-150.5,0.00076702,35]
[321893889,1712587853229,-1077.68,0.00076712,120]
[321893890,1712587853238,-151.0,0.00076712,120]
[321893891,1712587853247,-856.76,0.00076712,120]
[321893892,1712587853256,-151.0,0.00076712,120]
[321893893,1712587853266,-526.63,0.00076712,120]
[321893894,1712587853275,-1302.92,0.00076712,120]
[321893895,1712587853285,-883.87,0.00076712,120]
[321893896,1712587853295,-559.89,0.00076712,120]
[321893897,1712587853305,-404.249464,0.00076712,120]
[321893898,1712587853314,-404.24947,0.00076712,120]
[321893899,1712587853323,-1923.13,0.00076712,120]
[321893900,1712587853332,-1109.37,0.00076712,120]
[321893901,1712587853341,-10649.33,0.00076712,120]
[321893902,1712587853350,-2345.23,0.00076712,120]
[321893903,1712587853359,-732.94,0.00076712,120]
[321893904,1712587853368,-830.91,0.00076712,120]
[321893905,1712587853381,-1219.88527,0.00076712,14]
[321893906,1712587853389,-714.09,0.00076712,120]
[321893907,1712587853398,-962.04,0.00076712,2]
[321893908,1712587853407,-1219.885266,0.00076712,14]
[321893909,1712587853416,-576.59,0.00076712,120]
[321893910,1712587853425,-15305.89,0.00076712,120]
[321893911,1712587853434,-1950.5,0.00076712,120]
[321893912,1712587853444,-2695.62,0.00076712,120]
[321893913,1712587853453,-748.8,0.00076712,120]
[321893914,1712587853462,-2162.64,0.00076712,120]
[321893915,1712587853471,-1163.82,0.00076712,120]
[321893916,1712587853481,-1982.02,0.00076712,120]
[321893917,1712587853491,-540.95,0.00076712,120]
[321893918,1712587853500,-776.21,0.00076712,120]
[321893919,1712587853509,-319.99296,0.00076712,120]
[321893920,1712587853518,-4457.34,0.00076712,90]
[321893921,1712587853527,-319.99296,0.00076712,120]
[321893922,1712587853536,-861.87,0.00076712,120]
[321893923,1712587853545,-737.67,0.00076712,120]
[321893924,1712587853554,-676.76,0.00076712,21]
[321893925,1712587853563,-500.0,0.00076712,120]
[321893926,1712587853572,-599.04,0.00076712,120]
[321893927,1712587853581,-1686.44,0.00076712,120]
[321893928,1712587853590,-4451.46,0.00076712,120]
[321893929,1712587853599,-2675.24,0.00076712,120]
[321893930,1712587853609,-840.33,0.00076712,120]
[321893931,1712587853619,-3524.25,0.00076712,120]
[321893932,1712587853628,-1000.0,0.00076798,120]
[321893933,1712587853638,-952.0,0.00077001,120]
[321893934,1712587853648,-500.0,0.00077534,120]
[321893935,1712587853657,-1077.68,0.00077534,120]
[321893936,1712587853666,-856.76,0.00077534,120]
[321893937,1712587853675,-526.63,0.00077534,120]
[321893938,1712587853684,-1302.92,0.00077534,120]
[321893939,1712587853693,-883.87,0.00077534,120]
[321893940,1712587853703,-559.89,0.00077534,120]
[321893941,1712587853712,-1923.13,0.00077534,120]
[321893942,1712587853721,-1109.37,0.00077534,120]
[321893943,1712587853730,-10649.33,0.00077534,120]
[321893944,1712587853739,-2345.23,0.00077534,120]
[321893945,1712587853749,-732.94,0.00077534,120]
[321893946,1712587853758,-830.91,0.00077534,120]
[321893947,1712587853767,-714.09,0.00077534,120]
[321893948,1712587853776,-962.04,0.00077534,2]
[321893949,1712587853785,-576.59,0.00077534,120]
[321893950,1712587853794,-15305.89,0.00077534,120]
[321893951,1712587853806,-1950.5,0.00077534,120]
[321893952,1712587853864,-2695.62,0.00077534,120]
[321893953,1712587853873,-748.8,0.00077534,120]
[321893954,1712587853883,-2162.64,0.00077534,120]
[321893955,1712587853892,-1163.82,0.00077534,120]
[321893956,1712587853901,-1982.02,0.00077534,120]
[321893957,1712587853911,-540.95,0.00077534,120]
[321893958,1712587853920,-776.21,0.00077534,120]
[321893959,1712587853930,-4457.34,0.00077534,90]
[321893960,1712587853939,-861.87,0.00077534,120]
[321893961,1712587853948,-737.67,0.00077534,120]
[321893962,1712587853957,-676.76,0.00077534,21]
[321893963,1712587853965,-500.0,0.00077534,120]
[321893964,1712587853975,-599.04,0.00077534,120]
[321893965,1712587853984,-1686.44,0.00077534,120]
[321893966,1712587853993,-4451.46,0.00077534,120]
[321893967,1712587854002,-2675.24,0.00077534,120]
[321893968,1712587854010,-840.33,0.00077534,120]
[321893969,1712587854020,-3524.25,0.00077534,120]
[321893970,1712587854028,-585.0,0.000777,30]
[321893971,1712587854038,-26660.31721342,0.00078,60]
[321893972,1712587854046,-368.269632,0.00078,120]
[321893973,1712587854055,-368.269632,0.00078,120]
[321893974,1712587854065,-1077.68,0.00078356,120]
[321893975,1712587854075,-856.76,0.00078356,120]
[321893976,1712587854084,-526.63,0.00078356,120]
[321893977,1712587854094,-1302.92,0.00078356,120]
[321893978,1712587854103,-883.87,0.00078356,120]
[321893979,1712587854112,-559.89,0.00078356,120]
[321893980,1712587854121,-1923.13,0.00078356,120]
[321893981,1712587854131,-1109.37,0.00078356,120]
[321893982,1712587854140,-10649.33,0.00078356,120]
[321893983,1712587854150,-2345.23,0.00078356,120]
[321893984,1712587854160,-732.94,0.00078356,120]
[321893985,1712587854169,-830.91,0.00078356,120]
[321893986,1712587854179,-714.09,0.00078356,120]
[321893987,1712587854188,-962.04,0.00078356,2]
[321893988,1712587854200,-576.59,0.00078356,120]
[321893989,1712587854209,-15305.89,0.00078356,120]
[321893990,1712587854219,-1950.5,0.00078356,120]
[321893991,1712587854229,-2695.62,0.00078356,120]
[321893992,1712587854239,-748.8,0.00078356,120]
[321893993,1712587854250,-2162.64,0.00078356,120]
[321893994,1712587854259,-1163.82,0.00078356,120]
[321893995,1712587854268,-1982.02,0.00078356,120]
[321893996,1712587854278,-540.95,0.00078356,120]
[321893997,1712587854287,-776.21,0.00078356,120]
[321893998,1712587854299,-4457.34,0.00078356,90]
[321893999,1712587854308,-861.87,0.00078356,120]
[321894000,1712587854318,-737.67,0.00078356,120]
[321894001,1712587854326,-676.76,0.00078356,21]
[321894002,1712587854336,-191.88569962,0.00078356,120]
[321894003,1712587854345,-599.04,0.00078356,120]
[321894004,1712587854354,-1686.44,0.00078356,120]
[321894005,1712587854363,-4451.46,0.00078356,120]
[321894006,1712587854373,-2675.24,0.00078356,120]
[321894007,1712587854384,-840.33,0.00078356,120]
[321894008,1712587854394,-3524.25,0.00078356,120]
[321894009,1712587854403,-3150.05133601,0.0007889,120]
[321894010,1712587854413,-1077.74439543,0.00079178,120]
[321894011,1712587854423,-856.91894208,0.00079178,120]
[321894012,1712587854432,-526.69351625,0.00079178,120]
[321894013,1712587854443,-1303.0720493,0.00079178,120]
[321894014,1712587854452,-883.89631493,0.00079178,120]
[321894015,1712587854462,-560.03603063,0.00079178,120]
[321894016,1712587854472,-1923.1650684,0.00079178,120]
[321894017,1712587854482,-1109.50853222,0.00079178,120]
[321894018,1712587854491,-10649.43375615,0.00079178,120]
[321894019,1712587854499,-2345.28056979,0.00079178,120]
[321894020,1712587854508,-732.99525548,0.00079178,120]
[321894021,1712587854517,-831.11,0.00079178,120]
[321894022,1712587854527,-714.24216189,0.00079178,120]
[321894023,1712587854536,-962.19,0.00079178,2]
[321894024,1712587854545,-576.59720496,0.00079178,120]
[321894025,1712587854556,-15305.98452382,0.00079178,120]
[321894026,1712587854565,-1950.67534104,0.00079178,120]
[321894027,1712587854575,-2695.62,0.00079178,120]
[321894028,1712587854584,-748.97077591,0.00079178,120]
[321894029,1712587854593,-2162.75042867,0.00079178,120]
[321894030,1712587854603,-1164.02342249,0.00079178,120]
[321894031,1712587854612,-1982.03763378,0.00079178,120]
[321894032,1712587854621,-541.05386869,0.00079178,120]
[321894033,1712587854629,-776.22288232,0.00079178,120]
[321894034,1712587854638,-4457.43508826,0.00079178,90]
[321894035,1712587854647,-862.097839,0.00079178,120]
[321894036,1712587854656,-737.72035172,0.00079178,120]
[321894037,1712587854665,-676.76192606,0.00079178,21]
[321894038,1712587854674,-599.19552125,0.00079178,120]
[321894039,1712587854684,-1686.62,0.00079178,120]
[321894040,1712587854692,-4451.62876319,0.00079178,120]
[321894041,1712587854701,-2675.36002972,0.00079178,120]
[321894042,1712587854710,-840.33407086,0.00079178,120]
[321894043,1712587854719,-3524.26787113,0.00079178,120]
[321894044,1712587854728,-293.430746,0.00079308,120]
[321894045,1712587854782,-198.973832,0.00079308,120]
[321894046,1712587854791,-12406.85821384,0.0008,120]
[321894047,1712587854800,-500.0,0.0008,120]
[321894048,1712587854809,-1005.0,0.0008,120]
[321894049,1712587854818,-300.0,0.0008,105]
[321894050,1712587854828,-3563.68061154,0.0008,120]
[321894051,1712587854838,-176.485503,0.00080269,120]
[321894052,1712587854847,-2689.0,0.00080709,30]
[321894053,1712587854857,-952.0,0.00081054,120]
[321894054,1712587854866,-300.0,0.000815,106]
[321894055,1712587854875,-1005.0,0.00082,120]
[321894056,1712587854884,-500.0,0.00082191,120]
[321894057,1712587854893,-500.0,0.00082191,120]
[321894058,1712587854903,-368.269632,0.00082191,120]
[321894059,1712587854912,-368.269642,0.00082191,120]
[321894060,1712587854921,-500.0,0.00082191,120]
[321894061,1712587854931,-500.0,0.00082191,120]
[321894062,1712587854940,-500.0,0.00082191,120]
[321894063,1712587854949,-500.0,0.00082191,120]
[321894064,1712587854958,-500.0,0.00082191,120]
[321894065,1712587854968,-500.0,0.00082191,120]
[321894066,1712587854977,-500.0,0.00082191,120]
[321894067,1712587854988,-500.0,0.00082191,120]
[321894068,1712587855000,-500.0,0.00082191,120]
[321894069,1712587855009,-500.0,0.00082191,120]
[321894070,1712587855018,-500.0,0.00082191,120]
[321894071,1712587855030,-500.0,0.00082191,120]
[321894072,1712587855039,-500.0,0.00082191,120]
[321894073,1712587855048,-500.0,0.00082191,120]
[321894074,1712587855057,-500.0,0.00082191,120]
[321894075,1712587855066,-500.0,0.00082191,120]
[321894076,1712587855075,-500.0,0.00082191,120]
[321894077,1712587855084,-500.0,0.00082191,120]
[321894078,1712587855093,-500.0,0.00082191,120]
[321894079,1712587855102,-500.0,0.00082191,120]
[321894080,1712587855111,-500.0,0.00082191,120]
[321894081,1712587855120,-500.0,0.00082191,120]
[321894082,1712587855130,-500.0,0.00082191,120]
[321894083,1712587855139,-405.16430445,0.00082191,120]
[321894084,1712587855148,-165.172306,0.00082192,120]
[321894085,1712587855157,-300.0,0.00083,107]
[321894086,1712587855166,-1005.0,0.00084,120]
[321894087,1712587855174,-300.0,0.000845,108]
[321894088,1712587855183,-293.430746,0.00085076,120]
[321894089,1712587855192,-198.973832,0.00085076,120]
[321894090,1712587855200,-952.0,0.0008532,120]
[321894091,1712587855209,-1005.0,0.00086,120]
[321894092,1712587855218,-300.0,0.00086,109]
[321894093,1712587855227,-151.0,0.00086274,120]
[321894094,1712587855236,-4779.45101714,0.000865,120]
[321894095,1712587855244,-3764.0,0.0008736,30]
[321894096,1712587855253,-500.0,0.000875,110]
[321894097,1712587855262,-1005.0,0.00088,120]
[321894098,1712587855270,-2122.61347937,0.00088888,120]
[321894099,1712587855279,-952.0,0.00089811,120]
[321894100,1712587855289,-2016.23382851,0.0009,120]
[321894101,1712587855298,-500.0,0.0009,120]
[321894102,1712587855308,-293.430746,0.00090843,120]
[321894103,1712587855316,-198.973832,0.00090843,120]
[321894104,1712587855325,-165.172306,0.00091324,120]
[321894105,1712587855334,-1005.0,0.00092,120]
[321894106,1712587855342,-174.435043,0.00093151,120]
[321894107,1712587855351,-1005.0,0.00094,120]
[321894108,1712587855360,-952.0,0.00094537,120]
[321894109,1712587855369,-5270.0,0.00094559,30]
[321894110,1712587855380,-1005.0,0.00096,120]
[321894111,1712587855393,-1005.0,0.00096,120]
[321894112,1712587855402,-293.430746,0.00096611,120]
[321894113,1712587855411,-198.973832,0.00096611,120]
[321894114,1712587855421,-200.0,0.00097472,120]
[321894115,1712587855430,-1000.0,0.00097644,120]
[321894116,1712587855440,-1005.0,0.00098,120]
[321894117,1712587855450,-1000.0,0.00099,120]
[321894118,1712587855461,-399.99999999,0.00099,7]
[321894119,1712587855471,-952.0,0.00099513,120]
[321894120,1712587855480,-203.16,0.000999,2]
[321894121,1712587855489,-1243.01506365,0.001,120]
[321894122,1712587855498,-10049.0,0.001,120]
[321894123,1712587855507,-500.0,0.001,120]
[321894124,1712587855516,-261.16903076,0.001,120]
[321894125,1712587855525,-165.172306,0.00100457,120]
[321894126,1712587855534,-184.196923,0.00100457,120]
[321894127,1712587855543,-7378.0,0.00102351,30]
[321894128,1712587855554,-293.430746,0.00102379,120]
[321894129,1712587855564,-198.973832,0.00102379,120]
[321894130,1712587855621,-151.0,0.00102548,120]
[321894131,1712587855631,-952.0,0.00104751,120]
[321894132,1712587855640,-293.430746,0.00108147,120]
[321894133,1712587855649,-198.973832,0.00108147,120]
[321894134,1712587855659,-150.84915085,0.00108759,2]
[321894135,1712587855669,-165.172306,0.00109589,120]
[321894136,1712587855679,-952.0,0.00110264,120]
[321894137,1712587855688,-563.0,0.00110784,30]
[321894138,1712587855697,-200.0,0.0011312,120]
[321894139,1712587855707,-293.430746,0.00113915,120]
[321894140,1712587855716,-198.973832,0.00113915,120]
[321894141,1712587855725,-174.435043,0.00115068,120]
[321894142,1712587855734,-952.0,0.00116067,120]
[321894143,1712587855743,-165.172306,0.00118721,120]
[321894144,1712587855752,-151.0,0.00118822,120]